{"text_format":"3","workbook":"xlsx","n_sheets":3,"sheets":["Zadaci","Prikaz mjeseca","Prikaz tjedna"],"not_rendered":{"images":4,"defined_names":16},"read":"whole","date_system":"1900"}

{"sheet":"Zadaci","index":0,"n_rows":15,"n_cols":3,"rows_kept":15}
[null,"PRIKAZ MJESECA","PRIKAZ TJEDNA"]
[null," ZADACI"]
[null,"OPIS","KRAJNJI ROK"]
[null,"Zadatak 1",{"$f":"TODAY()","v":"2022-12-13"}]
[null,"Zadatak 2",{"$f":"TODAY()+15","v":"2022-12-28"}]
[null,"Zadatak 3",{"$f":"TODAY()+30","v":"2023-01-12"}]
[null,"Zadatak 4",{"$f":"TODAY()+45","v":"2023-01-27"}]
[null,"Zadatak 5",{"$f":"TODAY()+60","v":"2023-02-11"}]
[null,"Zadatak 6",{"$f":"TODAY()+75","v":"2023-02-26"}]
[null,"Zadatak 7",{"$f":"TODAY()+90","v":"2023-03-13"}]
[null,"Zadatak 8",{"$f":"TODAY()+105","v":"2023-03-28"}]
[null,"Zadatak 9",{"$f":"TODAY()+115","v":"2023-04-07"}]
[null,"Zadatak 10",{"$f":"TODAY()+130","v":"2023-04-22"}]
[null,"Zadatak 11",{"$f":"TODAY()+145","v":"2023-05-07"}]
[null,"Zadatak 12",{"$f":"TODAY()+160","v":"2023-05-22"}]

{"sheet":"Prikaz mjeseca","index":1,"n_rows":17,"n_cols":8,"rows_kept":17}
[null,"ZADACI","PRIKAZ TJEDNA"]
[null,"Odabir mjeseca:","Upišite godinu:"]
[null,{"$f":"TEXT(TODAY(),\"mmmm\")","v":"prosinac"},{"$f":"YEAR(TODAY())","v":2022}]
[null," PRIKAZ MJESECA"]
[null,"PONEDJELJAK","UTORAK","SRIJEDA","ČETVRTAK","PETAK","SUBOTA","NEDJELJA"]
[null,{"$f":"IF(WEEKDAY(DATEVALUE(\" 1 \"&MjMjesec&MjGodina),2)=COLUMN(A$2),1,IF(LEN(A6)>0,A6+1,\"\"))","v":""},"","",1,2,3,4]
[null,{"$f":"IF(LEN(B6)=0,\"\",IF(COUNTIF(Zadaci[KRAJNJI ROK],DATE(MjGodina,MjMjesecBr,B6))>0,\"Krajnji rok zadatka!\",\"\"))","v":""},{"$f":"IF(LEN(C6)=0,\"\",IF(COUNTIF(Zadaci[KRAJNJI ROK],DATE(MjGodina,MjMjesecBr,C6))>0,\"Krajnji rok zadatka!\",\"\"))","v":""},{"$f":"IF(LEN(D6)=0,\"\",IF(COUNTIF(Zadaci[KRAJNJI ROK],DATE(MjGodina,MjMjesecBr,D6))>0,\"Krajnji rok zadatka!\",\"\"))","v":""},{"$f":"IF(LEN(E6)=0,\"\",IF(COUNTIF(Zadaci[KRAJNJI ROK],DATE(MjGodina,MjMjesecBr,E6))>0,\"Krajnji rok zadatka!\",\"\"))","v":""},{"$f":"IF(LEN(F6)=0,\"\",IF(COUNTIF(Zadaci[KRAJNJI ROK],DATE(MjGodina,MjMjesecBr,F6))>0,\"Krajnji rok zadatka!\",\"\"))","v":""},{"$f":"IF(LEN(G6)=0,\"\",IF(COUNTIF(Zadaci[KRAJNJI ROK],DATE(MjGodina,MjMjesecBr,G6))>0,\"Krajnji rok zadatka!\",\"\"))","v":""},{"$f":"IF(LEN(H6)=0,\"\",IF(COUNTIF(Zadaci[KRAJNJI ROK],DATE(MjGodina,MjMjesecBr,H6))>0,\"Krajnji rok zadatka!\",\"\"))","v":""}]
[null,{"$f":"IF(LEN(H6)>0,IF(H6=DAY(DATE(MjGodina,MjMjesecBr+1,0)),\"\",H6+1),\"\")","v":5},{"$f":"IF(LEN(B8)>0,IF(B8=DAY(DATE(MjGodina,MjMjesecBr+1,0)),\"\",B8+1),\"\")","v":6},7,8,9,10,11]
[null,{"$f":"IF(LEN(B8)=0,\"\",IF(COUNTIF(Zadaci[KRAJNJI ROK],DATE(MjGodina,MjMjesecBr,B8))>0,\"Krajnji rok zadatka!\",\"\"))","v":""},{"$f":"IF(LEN(C8)=0,\"\",IF(COUNTIF(Zadaci[KRAJNJI ROK],DATE(MjGodina,MjMjesecBr,C8))>0,\"Krajnji rok zadatka!\",\"\"))","v":""},{"$f":"IF(LEN(D8)=0,\"\",IF(COUNTIF(Zadaci[KRAJNJI ROK],DATE(MjGodina,MjMjesecBr,D8))>0,\"Krajnji rok zadatka!\",\"\"))","v":""},{"$f":"IF(LEN(E8)=0,\"\",IF(COUNTIF(Zadaci[KRAJNJI ROK],DATE(MjGodina,MjMjesecBr,E8))>0,\"Krajnji rok zadatka!\",\"\"))","v":""},{"$f":"IF(LEN(F8)=0,\"\",IF(COUNTIF(Zadaci[KRAJNJI ROK],DATE(MjGodina,MjMjesecBr,F8))>0,\"Krajnji rok zadatka!\",\"\"))","v":""},{"$f":"IF(LEN(G8)=0,\"\",IF(COUNTIF(Zadaci[KRAJNJI ROK],DATE(MjGodina,MjMjesecBr,G8))>0,\"Krajnji rok zadatka!\",\"\"))","v":""},{"$f":"IF(LEN(H8)=0,\"\",IF(COUNTIF(Zadaci[KRAJNJI ROK],DATE(MjGodina,MjMjesecBr,H8))>0,\"Krajnji rok zadatka!\",\"\"))","v":""}]
[null,{"$f":"IF(LEN(H8)>0,IF(H8=DAY(DATE(MjGodina,MjMjesecBr+1,0)),\"\",H8+1),\"\")","v":12},{"$f":"IF(LEN(B10)>0,IF(B10=DAY(DATE(MjGodina,MjMjesecBr+1,0)),\"\",B10+1),\"\")","v":13},14,15,16,17,18]
[null,{"$f":"IF(LEN(B10)=0,\"\",IF(COUNTIF(Zadaci[KRAJNJI ROK],DATE(MjGodina,MjMjesecBr,B10))>0,\"Krajnji rok zadatka!\",\"\"))","v":""},{"$f":"IF(LEN(C10)=0,\"\",IF(COUNTIF(Zadaci[KRAJNJI ROK],DATE(MjGodina,MjMjesecBr,C10))>0,\"Krajnji rok zadatka!\",\"\"))","v":"Krajnji rok zadatka!"},{"$f":"IF(LEN(D10)=0,\"\",IF(COUNTIF(Zadaci[KRAJNJI ROK],DATE(MjGodina,MjMjesecBr,D10))>0,\"Krajnji rok zadatka!\",\"\"))","v":""},{"$f":"IF(LEN(E10)=0,\"\",IF(COUNTIF(Zadaci[KRAJNJI ROK],DATE(MjGodina,MjMjesecBr,E10))>0,\"Krajnji rok zadatka!\",\"\"))","v":""},{"$f":"IF(LEN(F10)=0,\"\",IF(COUNTIF(Zadaci[KRAJNJI ROK],DATE(MjGodina,MjMjesecBr,F10))>0,\"Krajnji rok zadatka!\",\"\"))","v":""},{"$f":"IF(LEN(G10)=0,\"\",IF(COUNTIF(Zadaci[KRAJNJI ROK],DATE(MjGodina,MjMjesecBr,G10))>0,\"Krajnji rok zadatka!\",\"\"))","v":""},{"$f":"IF(LEN(H10)=0,\"\",IF(COUNTIF(Zadaci[KRAJNJI ROK],DATE(MjGodina,MjMjesecBr,H10))>0,\"Krajnji rok zadatka!\",\"\"))","v":""}]
[null,{"$f":"IF(LEN(H10)>0,IF(H10=DAY(DATE(MjGodina,MjMjesecBr+1,0)),\"\",H10+1),\"\")","v":19},{"$f":"IF(LEN(B12)>0,IF(B12=DAY(DATE(MjGodina,MjMjesecBr+1,0)),\"\",B12+1),\"\")","v":20},21,22,23,24,25]
[null,{"$f":"IF(LEN(B12)=0,\"\",IF(COUNTIF(Zadaci[KRAJNJI ROK],DATE(MjGodina,MjMjesecBr,B12))>0,\"Krajnji rok zadatka!\",\"\"))","v":""},{"$f":"IF(LEN(C12)=0,\"\",IF(COUNTIF(Zadaci[KRAJNJI ROK],DATE(MjGodina,MjMjesecBr,C12))>0,\"Krajnji rok zadatka!\",\"\"))","v":""},{"$f":"IF(LEN(D12)=0,\"\",IF(COUNTIF(Zadaci[KRAJNJI ROK],DATE(MjGodina,MjMjesecBr,D12))>0,\"Krajnji rok zadatka!\",\"\"))","v":""},{"$f":"IF(LEN(E12)=0,\"\",IF(COUNTIF(Zadaci[KRAJNJI ROK],DATE(MjGodina,MjMjesecBr,E12))>0,\"Krajnji rok zadatka!\",\"\"))","v":""},{"$f":"IF(LEN(F12)=0,\"\",IF(COUNTIF(Zadaci[KRAJNJI ROK],DATE(MjGodina,MjMjesecBr,F12))>0,\"Krajnji rok zadatka!\",\"\"))","v":""},{"$f":"IF(LEN(G12)=0,\"\",IF(COUNTIF(Zadaci[KRAJNJI ROK],DATE(MjGodina,MjMjesecBr,G12))>0,\"Krajnji rok zadatka!\",\"\"))","v":""},{"$f":"IF(LEN(H12)=0,\"\",IF(COUNTIF(Zadaci[KRAJNJI ROK],DATE(MjGodina,MjMjesecBr,H12))>0,\"Krajnji rok zadatka!\",\"\"))","v":""}]
[null,{"$f":"IF(LEN(H12)>0,IF(H12=DAY(DATE(MjGodina,MjMjesecBr+1,0)),\"\",H12+1),\"\")","v":26},{"$f":"IF(LEN(B14)>0,IF(B14=DAY(DATE(MjGodina,MjMjesecBr+1,0)),\"\",B14+1),\"\")","v":27},28,29,30,31,""]
[null,{"$f":"IF(LEN(B14)=0,\"\",IF(COUNTIF(Zadaci[KRAJNJI ROK],DATE(MjGodina,MjMjesecBr,B14))>0,\"Krajnji rok zadatka!\",\"\"))","v":""},{"$f":"IF(LEN(C14)=0,\"\",IF(COUNTIF(Zadaci[KRAJNJI ROK],DATE(MjGodina,MjMjesecBr,C14))>0,\"Krajnji rok zadatka!\",\"\"))","v":""},{"$f":"IF(LEN(D14)=0,\"\",IF(COUNTIF(Zadaci[KRAJNJI ROK],DATE(MjGodina,MjMjesecBr,D14))>0,\"Krajnji rok zadatka!\",\"\"))","v":"Krajnji rok zadatka!"},{"$f":"IF(LEN(E14)=0,\"\",IF(COUNTIF(Zadaci[KRAJNJI ROK],DATE(MjGodina,MjMjesecBr,E14))>0,\"Krajnji rok zadatka!\",\"\"))","v":""},{"$f":"IF(LEN(F14)=0,\"\",IF(COUNTIF(Zadaci[KRAJNJI ROK],DATE(MjGodina,MjMjesecBr,F14))>0,\"Krajnji rok zadatka!\",\"\"))","v":""},{"$f":"IF(LEN(G14)=0,\"\",IF(COUNTIF(Zadaci[KRAJNJI ROK],DATE(MjGodina,MjMjesecBr,G14))>0,\"Krajnji rok zadatka!\",\"\"))","v":""},{"$f":"IF(LEN(H14)=0,\"\",IF(COUNTIF(Zadaci[KRAJNJI ROK],DATE(MjGodina,MjMjesecBr,H14))>0,\"Krajnji rok zadatka!\",\"\"))","v":""}]
[null,{"$f":"IF(LEN(H14)>0,IF(H14=DAY(DATE(MjGodina,MjMjesecBr+1,0)),\"\",H14+1),\"\")","v":""},{"$f":"IF(LEN(B16)>0,IF(B16=DAY(DATE(MjGodina,MjMjesecBr+1,0)),\"\",B16+1),\"\")","v":""},"","","","",""]
[null,{"$f":"IF(LEN(B16)=0,\"\",IF(COUNTIF(Zadaci[KRAJNJI ROK],DATE(MjGodina,MjMjesecBr,B16))>0,\"Krajnji rok zadatka!\",\"\"))","v":""},{"$f":"IF(LEN(C16)=0,\"\",IF(COUNTIF(Zadaci[KRAJNJI ROK],DATE(MjGodina,MjMjesecBr,C16))>0,\"Krajnji rok zadatka!\",\"\"))","v":""},{"$f":"IF(LEN(D16)=0,\"\",IF(COUNTIF(Zadaci[KRAJNJI ROK],DATE(MjGodina,MjMjesecBr,D16))>0,\"Krajnji rok zadatka!\",\"\"))","v":""},{"$f":"IF(LEN(E16)=0,\"\",IF(COUNTIF(Zadaci[KRAJNJI ROK],DATE(MjGodina,MjMjesecBr,E16))>0,\"Krajnji rok zadatka!\",\"\"))","v":""},{"$f":"IF(LEN(F16)=0,\"\",IF(COUNTIF(Zadaci[KRAJNJI ROK],DATE(MjGodina,MjMjesecBr,F16))>0,\"Krajnji rok zadatka!\",\"\"))","v":""},{"$f":"IF(LEN(G16)=0,\"\",IF(COUNTIF(Zadaci[KRAJNJI ROK],DATE(MjGodina,MjMjesecBr,G16))>0,\"Krajnji rok zadatka!\",\"\"))","v":""},{"$f":"IF(LEN(H16)=0,\"\",IF(COUNTIF(Zadaci[KRAJNJI ROK],DATE(MjGodina,MjMjesecBr,H16))>0,\"Krajnji rok zadatka!\",\"\"))","v":""}]

{"sheet":"Prikaz tjedna","index":2,"n_rows":17,"n_cols":8,"rows_kept":17}
[null,"ZADACI","PRIKAZ MJESECA"]
[null,"Odabir mjeseca:","Unesite godinu:","Odaberite tjedan:"]
[null,"rujan",{"$f":"YEAR(TODAY())","v":2022},"1 tjedan"]
[null," PRIKAZ TJEDNA"]
[null,{"$f":"IF(WEEKDAY(DATEVALUE(\" 1 \"&TjMjesec&TjGodina),2)=COLUMN(A$2),1,IF(LEN(A5)>0,A5+1,\"\"))","v":""},"","",1,2,3,4]
[null,{"$f":"IF(LEN(H5)>0,IF(H5=PosljednjiDanMjeseca_Tjedan,\"\",H5+1),\"\")","v":5},{"$f":"IF(LEN(B6)>0,IF(B6=PosljednjiDanMjeseca_Tjedan,\"\",B6+1),\"\")","v":6},7,8,9,10,11]
[null,{"$f":"IF(LEN(H6)>0,IF(H6=PosljednjiDanMjeseca_Tjedan,\"\",H6+1),\"\")","v":12},13,14,15,16,17,18]
[null,{"$f":"IF(LEN(H7)>0,IF(H7=PosljednjiDanMjeseca_Tjedan,\"\",H7+1),\"\")","v":19},20,21,22,23,24,25]
[null,{"$f":"IF(LEN(H8)>0,IF(H8=PosljednjiDanMjeseca_Tjedan,\"\",H8+1),\"\")","v":26},27,28,29,30,"",""]
[null,{"$f":"IF(LEN(H9)>0,IF(H9=PosljednjiDanMjeseca_Tjedan,\"\",H9+1),\"\")","v":""},"","","","","",""]
[null,"PONEDJELJAK","UTORAK","SRIJEDA","ČETVRTAK","PETAK","SUBOTA","NEDJELJA"]
[null,{"$f":"IF(B14=\"\",IF(AND(ISNUMBER(A12),A12<PosljednjiDanMjeseca_Tjedan),A12+1,\"\"),IF(B14<=7,\"\",INDEX(TjMjesecPrikaz,TjTjedan,COLUMN(A$2))-7))","v":""},{"$f":"IF(C14=\"\",IF(AND(ISNUMBER(B12),B12<PosljednjiDanMjeseca_Tjedan),B12+1,\"\"),IF(C14<=7,\"\",INDEX(TjMjesecPrikaz,TjTjedan,COLUMN(B$2))-7))","v":""},"","","","",""]
[null,{"$f":"IF(LEN(B12)=0,\"\",IF(COUNTIF(Zadaci[KRAJNJI ROK],DATE(TjGodina,TjMjesecBr,B12))>0,\"Krajnji rok zadatka!\",\"\"))","v":""},{"$f":"IF(LEN(C12)=0,\"\",IF(COUNTIF(Zadaci[KRAJNJI ROK],DATE(TjGodina,TjMjesecBr,C12))>0,\"Krajnji rok zadatka!\",\"\"))","v":""},{"$f":"IF(LEN(D12)=0,\"\",IF(COUNTIF(Zadaci[KRAJNJI ROK],DATE(TjGodina,TjMjesecBr,D12))>0,\"Krajnji rok zadatka!\",\"\"))","v":""},{"$f":"IF(LEN(E12)=0,\"\",IF(COUNTIF(Zadaci[KRAJNJI ROK],DATE(TjGodina,TjMjesecBr,E12))>0,\"Krajnji rok zadatka!\",\"\"))","v":""},{"$f":"IF(LEN(F12)=0,\"\",IF(COUNTIF(Zadaci[KRAJNJI ROK],DATE(TjGodina,TjMjesecBr,F12))>0,\"Krajnji rok zadatka!\",\"\"))","v":""},{"$f":"IF(LEN(G12)=0,\"\",IF(COUNTIF(Zadaci[KRAJNJI ROK],DATE(TjGodina,TjMjesecBr,G12))>0,\"Krajnji rok zadatka!\",\"\"))","v":""},{"$f":"IF(LEN(H12)=0,\"\",IF(COUNTIF(Zadaci[KRAJNJI ROK],DATE(TjGodina,TjMjesecBr,H12))>0,\"Krajnji rok zadatka!\",\"\"))","v":""}]
[null,{"$f":"INDEX(TjMjesecPrikaz,TjTjedan,COLUMN(A$2))","v":""},{"$f":"INDEX(TjMjesecPrikaz,TjTjedan,COLUMN(B$2))","v":""},{"$f":"INDEX(TjMjesecPrikaz,TjTjedan,COLUMN(C$2))","v":""},{"$f":"INDEX(TjMjesecPrikaz,TjTjedan,COLUMN(D$2))","v":1},{"$f":"INDEX(TjMjesecPrikaz,TjTjedan,COLUMN(E$2))","v":2},{"$f":"INDEX(TjMjesecPrikaz,TjTjedan,COLUMN(F$2))","v":3},{"$f":"INDEX(TjMjesecPrikaz,TjTjedan,COLUMN(G$2))","v":4}]
[null,{"$f":"IF(LEN(B14)=0,\"\",IF(COUNTIF(Zadaci[KRAJNJI ROK],DATE(TjGodina,TjMjesecBr,B14))>0,\"Krajnji rok zadatka!\",\"\"))","v":""},{"$f":"IF(LEN(C14)=0,\"\",IF(COUNTIF(Zadaci[KRAJNJI ROK],DATE(TjGodina,TjMjesecBr,C14))>0,\"Krajnji rok zadatka!\",\"\"))","v":""},{"$f":"IF(LEN(D14)=0,\"\",IF(COUNTIF(Zadaci[KRAJNJI ROK],DATE(TjGodina,TjMjesecBr,D14))>0,\"Krajnji rok zadatka!\",\"\"))","v":""},{"$f":"IF(LEN(E14)=0,\"\",IF(COUNTIF(Zadaci[KRAJNJI ROK],DATE(TjGodina,TjMjesecBr,E14))>0,\"Krajnji rok zadatka!\",\"\"))","v":""},{"$f":"IF(LEN(F14)=0,\"\",IF(COUNTIF(Zadaci[KRAJNJI ROK],DATE(TjGodina,TjMjesecBr,F14))>0,\"Krajnji rok zadatka!\",\"\"))","v":""},{"$f":"IF(LEN(G14)=0,\"\",IF(COUNTIF(Zadaci[KRAJNJI ROK],DATE(TjGodina,TjMjesecBr,G14))>0,\"Krajnji rok zadatka!\",\"\"))","v":""},{"$f":"IF(LEN(H14)=0,\"\",IF(COUNTIF(Zadaci[KRAJNJI ROK],DATE(TjGodina,TjMjesecBr,H14))>0,\"Krajnji rok zadatka!\",\"\"))","v":""}]
[null,{"$f":"IFERROR(IF(B14=\"\",IF(AND(ISNUMBER(A16),A16<PosljednjiDanMjeseca_Tjedan),A16+1,$H$14+COLUMN(A$2)),IF(B14+7>PosljednjiDanMjeseca_Tjedan,\"\",INDEX(TjMjesecPrikaz,TjTjedan,COLUMN(A$2))+7)),\"\")","v":5},{"$f":"IFERROR(IF(C14=\"\",IF(AND(ISNUMBER(B16),B16<PosljednjiDanMjeseca_Tjedan),B16+1,$H$14+COLUMN(B$2)),IF(C14+7>PosljednjiDanMjeseca_Tjedan,\"\",INDEX(TjMjesecPrikaz,TjTjedan,COLUMN(B$2))+7)),\"\")","v":6},{"$f":"IFERROR(IF(D14=\"\",IF(AND(ISNUMBER(C16),C16<PosljednjiDanMjeseca_Tjedan),C16+1,$H$14+COLUMN(C$2)),IF(D14+7>PosljednjiDanMjeseca_Tjedan,\"\",INDEX(TjMjesecPrikaz,TjTjedan,COLUMN(C$2))+7)),\"\")","v":7},{"$f":"IFERROR(IF(E14=\"\",IF(AND(ISNUMBER(D16),D16<PosljednjiDanMjeseca_Tjedan),D16+1,$H$14+COLUMN(D$2)),IF(E14+7>PosljednjiDanMjeseca_Tjedan,\"\",INDEX(TjMjesecPrikaz,TjTjedan,COLUMN(D$2))+7)),\"\")","v":8},{"$f":"IFERROR(IF(F14=\"\",IF(AND(ISNUMBER(E16),E16<PosljednjiDanMjeseca_Tjedan),E16+1,$H$14+COLUMN(E$2)),IF(F14+7>PosljednjiDanMjeseca_Tjedan,\"\",INDEX(TjMjesecPrikaz,TjTjedan,COLUMN(E$2))+7)),\"\")","v":9},{"$f":"IFERROR(IF(G14=\"\",IF(AND(ISNUMBER(F16),F16<PosljednjiDanMjeseca_Tjedan),F16+1,$H$14+COLUMN(F$2)),IF(G14+7>PosljednjiDanMjeseca_Tjedan,\"\",INDEX(TjMjesecPrikaz,TjTjedan,COLUMN(F$2))+7)),\"\")","v":10},{"$f":"IFERROR(IF(H14=\"\",IF(AND(ISNUMBER(G16),G16<PosljednjiDanMjeseca_Tjedan),G16+1,$H$14+COLUMN(G$2)),IF(H14+7>PosljednjiDanMjeseca_Tjedan,\"\",INDEX(TjMjesecPrikaz,TjTjedan,COLUMN(G$2))+7)),\"\")","v":11}]
[null,{"$f":"IF(LEN(B16)=0,\"\",IF(COUNTIF(Zadaci[KRAJNJI ROK],DATE(TjGodina,TjMjesecBr,B16))>0,\"Krajnji rok zadatka!\",\"\"))","v":""},{"$f":"IF(LEN(C16)=0,\"\",IF(COUNTIF(Zadaci[KRAJNJI ROK],DATE(TjGodina,TjMjesecBr,C16))>0,\"Krajnji rok zadatka!\",\"\"))","v":""},{"$f":"IF(LEN(D16)=0,\"\",IF(COUNTIF(Zadaci[KRAJNJI ROK],DATE(TjGodina,TjMjesecBr,D16))>0,\"Krajnji rok zadatka!\",\"\"))","v":""},{"$f":"IF(LEN(E16)=0,\"\",IF(COUNTIF(Zadaci[KRAJNJI ROK],DATE(TjGodina,TjMjesecBr,E16))>0,\"Krajnji rok zadatka!\",\"\"))","v":""},{"$f":"IF(LEN(F16)=0,\"\",IF(COUNTIF(Zadaci[KRAJNJI ROK],DATE(TjGodina,TjMjesecBr,F16))>0,\"Krajnji rok zadatka!\",\"\"))","v":""},{"$f":"IF(LEN(G16)=0,\"\",IF(COUNTIF(Zadaci[KRAJNJI ROK],DATE(TjGodina,TjMjesecBr,G16))>0,\"Krajnji rok zadatka!\",\"\"))","v":""},{"$f":"IF(LEN(H16)=0,\"\",IF(COUNTIF(Zadaci[KRAJNJI ROK],DATE(TjGodina,TjMjesecBr,H16))>0,\"Krajnji rok zadatka!\",\"\"))","v":""}]